Departmental Area,Entity,Payment Date,Expense Type,Expense area,Supplier Name,Payment Reference,Invoice Distribution Amount,Description,Supplier Type,Expenditure Type
UK Statistics Authority,Office for National Statistics,03-Jan-20,Training & Development,Portfolio Delivery,Matthew Cabot,168538,26760, Training Services,Large,Programme Expenditure
UK Statistics Authority,Office for National Statistics,03-Jan-20,Telecoms,IT Operations,BT Global Services,168540,29767.22, Cloud Hosting Services,Large,Programme Expenditure
UK Statistics Authority,Office for National Statistics,03-Jan-20,Other Professional Services,Data Collection Service,HH Associates Ltd,168552,187637.98, Information Management Services,SME,Programme Expenditure,, 
UK Statistics Authority,Office for National Statistics,03-Jan-20,Surveys,Prices Division,Kantar Uk Ltd,168554,193583.32, Statistical Services,Large,Programme Expenditure
UK Statistics Authority,Office for National Statistics,03-Jan-20,Surveys,Prices Division,Kantar Uk Ltd,168554,1470.6, Statistical Services,Large,Programme Expenditure
UK Statistics Authority,Office for National Statistics,06-Jan-20,Telecoms,IT Operations,BT Global Services,168564,99560.78, Cloud Hosting Services,Large,Programme Expenditure
UK Statistics Authority,Office for National Statistics,06-Jan-20,Travel And Subsistence,CWT Trainline,Corporate Travel Management ,168565,42005.48, Corporate Travel Management ,SME,Programme Expenditure
UK Statistics Authority,Office for National Statistics,06-Jan-20,"ICT Outsourcing, Maintenance And Support",Researcher Support And Data Access ,Equiniti Limited,168566,5993.42, Information Management Services,Large,Programme Expenditure
UK Statistics Authority,Office for National Statistics,06-Jan-20,Exp - Purchase Of Goods/Services - IT Contractual Services,Researcher Support And Data Access ,Equiniti Limited,168566,42165.36, Information Management Services,Large,Programme Expenditure
UK Statistics Authority,Office for National Statistics,06-Jan-20,End User Software And Hardware,Researcher Support And Data Access ,Equiniti Limited,168566,2964, Information Management Services,Large,Programme Expenditure
UK Statistics Authority,Office for National Statistics,06-Jan-20,"ICT Outsourcing, Maintenance And Support",IT Operations,Equiniti Limited,168566,47212.8, Information Management Services,Large,Programme Expenditure
UK Statistics Authority,Office for National Statistics,06-Jan-20,Major Works Over ?25K,Property Christchurch,Pickfords Move Managment Ltd,168572,25963.27, Facility Management Services,Large,Programme Expenditure
UK Statistics Authority,Office for National Statistics,07-Jan-20,IT Management And Change,IT Operations,Crown Hosting Data Centres Limited,168843,26135.34,Crown Hosted Data Center,SME,Programme Expenditure
UK Statistics Authority,Office for National Statistics,07-Jan-20,"ICT Outsourcing, Maintenance And Support",Senior Management Team Design,Totalmobile Ltd,168855,212206.2, Field Work Management Services,SME,Programme Expenditure
UK Statistics Authority,Office for National Statistics,07-Jan-20,Hosting,IT Operations,Amazon Web Services Inc,168857,66471.7, Web Cloud Hosting Services,Large,Programme Expenditure
UK Statistics Authority,Office for National Statistics,08-Jan-20,Exp - Purchase Of Goods/Services - IT Contractual Services,Data Science Campus,E Synergy Solutions,168862,31410, Information Management Services,SME,Programme Expenditure
UK Statistics Authority,Office for National Statistics,08-Jan-20,Exp - Purchase Of Goods And Services Consultants,Productivity Research And Professional Development,Niesr,168877,363535.92, Information Management Services,SME,Programme Expenditure
UK Statistics Authority,Office for National Statistics,08-Jan-20,Exp - Purchase Of Goods/Services - IT Contractual Services,Tech Delivery SRS,Equiniti-Toplevel,168892,79257.6, Information Management Services,SME,Programme Expenditure
UK Statistics Authority,Office for National Statistics,08-Jan-20,Surveys,Crime Statistics,Kantar Uk Ltd,168899,35556, Statistical Services,Large,Programme Expenditure
UK Statistics Authority,Office for National Statistics,08-Jan-20,Hosting,Data Science Campus,Strategic Blue Services Limited,168908,64644.99, UN Global Paltform G-Cloud Services,SME,Programme Expenditure
UK Statistics Authority,Office for National Statistics,09-Jan-20,Other Professional Services,Social Survey Transformation Newport,HM Treasury Group,169215,37481.33, Information Management Services,Large,Programme Expenditure
UK Statistics Authority,Office for National Statistics,09-Jan-20,Exp - Purchase Of Goods And Services Consultants,Consultancy Management,Deloitte,169217,40440, Information Management Services ,Large,Programme Expenditure
UK Statistics Authority,Office for National Statistics,09-Jan-20,Other Goods And Services,Data Collection Service,Royal Mail Group Ltd,169218,28920.51, Outgoing Postage,Large,Programme Expenditure
UK Statistics Authority,Office for National Statistics,09-Jan-20,Postage,Survey Processing Centre,Royal Mail Group Ltd,169218,5829.42, Outgoing Postage,Large,Programme Expenditure
UK Statistics Authority,Office for National Statistics,09-Jan-20,Exp - Purchase Of Goods/Services - IT Contractual Services,Tech Delivery SRS,Equiniti-Toplevel,169228,53610.06, Information Management Services,SME,Programme Expenditure
UK Statistics Authority,Office for National Statistics,09-Jan-20,Exp - Purchase Of Goods/Services - Contractor Travel,Tech Delivery SRS,Equiniti-Toplevel,169228,1378.14, Information Management Services,SME,Programme Expenditure
UK Statistics Authority,Office for National Statistics,10-Jan-20,Marketing & Media,Stakeholder Engagement And Comms,Manning Gottlieb,169246,97473.42, Information Management Services,Large,Programme Expenditure
UK Statistics Authority,Office for National Statistics,10-Jan-20,Exp - Purchase Of Goods/Services - IT Contractual Services,Tech Delivery Next Gen IT And Infrastructure,E Synergy Solutions,169249,32340, Information Management Services,SME,Programme Expenditure
UK Statistics Authority,Office for National Statistics,10-Jan-20,Exp - Purchase Of Goods/Services - IT Contractual Services,IT Operations,E Synergy Solutions,169249,121209, Information Management Services,SME,Programme Expenditure
UK Statistics Authority,Office for National Statistics,10-Jan-20,Exp - Short-Term Contract & Agency Staff - Full Cost,Stakeholder Engagement And Comms,LA International,169255,1657.01, Information Management Services,SME,Programme Expenditure
UK Statistics Authority,Office for National Statistics,10-Jan-20,Exp - Purchase Of Goods/Services - Contractors,International Trade And Transactions,LA International,169255,2306.77, Information Management Services,SME,Programme Expenditure
UK Statistics Authority,Office for National Statistics,10-Jan-20,Exp - Purchase Of Goods/Services - Contractors,IT Applications,LA International,169255,8169.9, Information Management Services,SME,Programme Expenditure
UK Statistics Authority,Office for National Statistics,10-Jan-20,Exp - Purchase Of Goods/Services - Contractors,Digital Delivery,LA International,169255,14353.2, Information Management Services,SME,Programme Expenditure
UK Statistics Authority,Office for National Statistics,10-Jan-20,Exp - Purchase Of Goods/Services - Contractor Travel,Digital Delivery,LA International,169255,42, Information Management Services,SME,Programme Expenditure
UK Statistics Authority,Office for National Statistics,10-Jan-20,Exp - Purchase Of Goods/Services - IT Contractual Services,Strategy And Architecture,Insight Direct,169258,138462, Information Management Services,Large,Programme Expenditure
UK Statistics Authority,Office for National Statistics,10-Jan-20,Exp - Purchase Of Goods/Services - Contractor Travel,Strategy And Architecture,Insight Direct,169258,30000,Information Management Services,Large,Programme Expenditure
UK Statistics Authority,Office for National Statistics,10-Jan-20,"ICT Outsourcing, Maintenance And Support",Senior Management Team Design,Totalmobile Ltd,169260,281473.8, Field Work Management Services,SME,Programme Expenditure
UK Statistics Authority,Office for National Statistics,13-Jan-20,FM Contract Payments,Mitie Payments,Vinci Construction Uk Limited,169713,324759.28, Facility Management Services,Large,Programme Expenditure
UK Statistics Authority,Office for National Statistics,13-Jan-20,Stationery,Lodgecard,Royal Bank Of Scotland,169723,5913.99, Multiple Procurement Card Stationery Purchases  ,Large,Programme Expenditure
UK Statistics Authority,Office for National Statistics,13-Jan-20,Other Goods And Services,GPC,Royal Bank Of Scotland,169723,38193.33, Multiple Procurement Card Purchases  ,Large,Programme Expenditure
UK Statistics Authority,Office for National Statistics,13-Jan-20,Exp - Purchase Of Goods/Services - IT Contractual Services,Tech Delivery Next Gen IT And Infrastructure,Cysure Limited,169731,23907.97, Information Management Services,SME,Programme Expenditure
UK Statistics Authority,Office for National Statistics,13-Jan-20,Exp - Purchase Of Goods/Services - Contractor Travel,Tech Delivery Next Gen IT And Infrastructure,Cysure Limited,169731,1506.64, Information Management Services,SME,Programme Expenditure
UK Statistics Authority,Office for National Statistics,13-Jan-20,Exp - Purchase Of Goods/Services - IT Contractual Services,IT Applications,Cysure Limited,169731,105757.27, Information Management Services,SME,Programme Expenditure
UK Statistics Authority,Office for National Statistics,13-Jan-20,Exp - Purchase Of Goods/Services - Contractor Travel,IT Applications,Cysure Limited,169731,5504.53, Information Management Services,SME,Programme Expenditure
UK Statistics Authority,Office for National Statistics,14-Jan-20,Exp - Purchase Of Goods/Services - Contractors,Digital Delivery,Talent International,169750,33264,Information Management Services,SME,Programme Expenditure
UK Statistics Authority,Office for National Statistics,15-Jan-20,Travel And Subsistence,CWT Trainline,Corporate Travel Management ,169762,68503.1, Corporate Travel Management ,SME,Programme Expenditure
UK Statistics Authority,Office for National Statistics,15-Jan-20,Exp - Short-Term Contract & Agency Staff - Full Cost,Census CCS Data Collection,Parity Resources Limited,169769,2317.68, Census Information Management Services,Large,Programme Expenditure
UK Statistics Authority,Office for National Statistics,15-Jan-20,Exp - Short-Term Contract & Agency Staff - Full Cost,Census CCS Data Collection,Parity Resources Limited,169769,963.53, Census Information Management Services,Large,Programme Expenditure
UK Statistics Authority,Office for National Statistics,15-Jan-20,Exp - Purchase Of Goods/Services - Contractors,Programme Delivery,Parity Resources Limited,169769,18632.12, Information Management Services,Large,Programme Expenditure
UK Statistics Authority,Office for National Statistics,15-Jan-20,Exp - Short-Term Contract & Agency Staff - Full Cost,Business Architecture Transformation And Statistical Strategy,Parity Resources Limited,169769,719.72, Census Information Management Services,Large,Programme Expenditure
UK Statistics Authority,Office for National Statistics,15-Jan-20,Exp - Purchase Of Goods/Services - Contractors,Digital Delivery,Parity Resources Limited,169769,30502.08, Information Management Services,Large,Programme Expenditure
UK Statistics Authority,Office for National Statistics,15-Jan-20,Exp - Purchase Of Goods/Services - Contractors,Data As A Service,Parity Resources Limited,169769,7176.96, Information Management Services,Large,Programme Expenditure
UK Statistics Authority,Office for National Statistics,15-Jan-20,Exp - Short-Term Contract & Agency Staff - Full Cost,Labour Market,Parity Resources Limited,169769,863.66, Census Information Management Services,Large,Programme Expenditure
UK Statistics Authority,Office for National Statistics,15-Jan-20,Exp - Short-Term Contract & Agency Staff - Full Cost,Labour Market,Parity Resources Limited,169769,719.72, Census Information Management Services,Large,Programme Expenditure
UK Statistics Authority,Office for National Statistics,16-Jan-20,Exp - Purchase Of Goods/Services - IT Contractual Services,Digital Publishing,Swirrl IT Ltd,170145,82298.4, Information Management Services ,SME,Programme Expenditure
UK Statistics Authority,Office for National Statistics,16-Jan-20,IT Management And Change,IT Operations,Swirrl IT Ltd,170145,1920, Information Management Services ,SME,Programme Expenditure
UK Statistics Authority,Office for National Statistics,17-Jan-20,FM Contract Payments,Mitie Payments,Vinci Construction Uk Limited,170176,98098.33, Facility Management Services,Large,Programme Expenditure
UK Statistics Authority,Office for National Statistics,20-Jan-20,Exp - Short-Term Contract & Agency Staff - Full Cost,Census CCS Data Collection,Parity Resources Limited,170725,619.28, Census Information Management Services,Large,Programme Expenditure
UK Statistics Authority,Office for National Statistics,20-Jan-20,Exp - Short-Term Contract & Agency Staff - Full Cost,Census CCS Data Collection,Parity Resources Limited,170725,3067.53, Census Information Management Services,Large,Programme Expenditure
UK Statistics Authority,Office for National Statistics,20-Jan-20,Exp - Purchase Of Goods/Services - Contractors,Census CCS Data Collection,Parity Resources Limited,170725,15219, Information Management Services,Large,Programme Expenditure
UK Statistics Authority,Office for National Statistics,20-Jan-20,Exp - Short-Term Contract & Agency Staff - Full Cost,Data Science Campus,Parity Resources Limited,170725,7033.08, Census Information Management Services,Large,Programme Expenditure
UK Statistics Authority,Office for National Statistics,20-Jan-20,Surveys,Business Outputs And Developments,IFF Research,170737,75139.2, Statistical Services,Large,Programme Expenditure
UK Statistics Authority,Office for National Statistics,21-Jan-20,Exp - Purchase Of Goods/Services - Contractors,Security Advisory,Certes Computing Ltd,170749,23058.14, Information Management Services,SME,Programme Expenditure
UK Statistics Authority,Office for National Statistics,21-Jan-20,Exp - Purchase Of Goods/Services - Contractors,Digital Delivery,Certes Computing Ltd,170749,10611.71, Information Management Services,SME,Programme Expenditure
UK Statistics Authority,Office for National Statistics,21-Jan-20,Exp - Purchase Of Goods/Services - Contractors,Digital Delivery,Certes Computing Ltd,170749,14091, Information Management Services,SME,Programme Expenditure
UK Statistics Authority,Office for National Statistics,21-Jan-20,Exp - Purchase Of Goods/Services - Contractors,Digital Delivery,Certes Computing Ltd,170749,33253.44, Information Management Services,SME,Programme Expenditure
UK Statistics Authority,Office for National Statistics,21-Jan-20,Exp - Purchase Of Goods/Services - Contractors,Digital Delivery,Certes Computing Ltd,170749,28358.38, Information Management Services,SME,Programme Expenditure
UK Statistics Authority,Office for National Statistics,22-Jan-20,Travel And Subsistence,CWT Trainline,Corporate Travel Management ,170764,83630.82, Corporate Travel Management ,SME,Programme Expenditure
UK Statistics Authority,Office for National Statistics,22-Jan-20,Exp - Purchase Of Goods/Services - Contractors,Security Advisory,Certes Computing Ltd,170767,53289.98, Information Management Services,SME,Programme Expenditure
UK Statistics Authority,Office for National Statistics,22-Jan-20,"ICT Outsourcing, Maintenance And Support",Finance,Accenture (Uk) Limited,170786,26810.08, Information Management Services,SME,Programme Expenditure
UK Statistics Authority,Office for National Statistics,23-Jan-20,Exp - Purchase Of Goods/Services - Contractors,International Trade And Transactions,Mango Solutions,171236,11424, Information Management Services,SME,Programme Expenditure
UK Statistics Authority,Office for National Statistics,23-Jan-20,Exp - Purchase Of Goods/Services - Contractors,International Trade And Transactions,Mango Solutions,171236,21060, Information Management Services,SME,Programme Expenditure
UK Statistics Authority,Office for National Statistics,23-Jan-20,Exp - Permanent Uk Staff - Prp Voucher Payments,ONS Corporate Funds,Park Retail Ltd,171238,9203.75, Performance Reward Vouchers,Large,Programme Expenditure
UK Statistics Authority,Office for National Statistics,23-Jan-20,Exp - Purchase Of Goods/Services - Incentive Payments,Survey Management,Park Retail Ltd,171238,5888.02, Survey Incentives,Large,Programme Expenditure
UK Statistics Authority,Office for National Statistics,23-Jan-20,Exp - Purchase Of Goods/Services - Incentive Payments,Survey Management,Park Retail Ltd,171238,7641.48, Survey Incentives,Large,Programme Expenditure
UK Statistics Authority,Office for National Statistics,23-Jan-20,Exp - Purchase Of Goods/Services - Incentive Payments,Survey Management,Park Retail Ltd,171238,8182.92, Survey Incentives,Large,Programme Expenditure
UK Statistics Authority,Office for National Statistics,23-Jan-20,Exp - Short-Term Contract & Agency Staff - Full Cost,Beyond 2021 Research And Design,Concept Information Technology Ltd T/A Concept Resourcing,171240,9393.64, Information Management Services,Large,Programme Expenditure
UK Statistics Authority,Office for National Statistics,23-Jan-20,Exp - Short-Term Contract & Agency Staff - Full Cost,Beyond 2021 Research And Design,Concept Information Technology Ltd T/A Concept Resourcing,171240,1823.68, Information Management Services,Large,Programme Expenditure
UK Statistics Authority,Office for National Statistics,23-Jan-20,Exp - Short-Term Contract & Agency Staff - Full Cost,Census CCS Data Collection,Concept Information Technology Ltd T/A Concept Resourcing,171240,421.06, Census Information Management Services,Large,Programme Expenditure
UK Statistics Authority,Office for National Statistics,23-Jan-20,Exp - Short-Term Contract & Agency Staff - Full Cost,Business Change Support,Concept Information Technology Ltd T/A Concept Resourcing,171240,22583.07, Information Management Services,Large,Programme Expenditure
UK Statistics Authority,Office for National Statistics,23-Jan-20,Exp - Short-Term Contract & Agency Staff - Full Cost,Business Change Support,Concept Information Technology Ltd T/A Concept Resourcing,171240,4625.3, Information Management Services,Large,Programme Expenditure
UK Statistics Authority,Office for National Statistics,23-Jan-20,Exp - Short-Term Contract & Agency Staff - Full Cost,Business Change Support,Concept Information Technology Ltd T/A Concept Resourcing,171240,13116.32, Information Management Services,Large,Programme Expenditure
UK Statistics Authority,Office for National Statistics,23-Jan-20,Exp - Short-Term Contract & Agency Staff - Full Cost,Business Change Support,Concept Information Technology Ltd T/A Concept Resourcing,171240,24014.59, Information Management Services,Large,Programme Expenditure
UK Statistics Authority,Office for National Statistics,23-Jan-20,Exp - Purchase Of Goods/Services - Contractors,Business Change Support,Concept Information Technology Ltd T/A Concept Resourcing,171240,7917.4, Information Management Services,Large,Programme Expenditure
UK Statistics Authority,Office for National Statistics,23-Jan-20,Exp - Purchase Of Goods/Services - Contractors,Business Change Support,Concept Information Technology Ltd T/A Concept Resourcing,171240,2082.38, Information Management Services,Large,Programme Expenditure
UK Statistics Authority,Office for National Statistics,23-Jan-20,Exp - Purchase Of Goods/Services - Contractors,Business Change Support,Concept Information Technology Ltd T/A Concept Resourcing,171240,4288.51, Information Management Services,Large,Programme Expenditure
UK Statistics Authority,Office for National Statistics,23-Jan-20,Exp - Short-Term Contract & Agency Staff - Full Cost,International Trade And Transactions,Concept Information Technology Ltd T/A Concept Resourcing,171240,8974.57, Information Management Services,Large,Programme Expenditure
UK Statistics Authority,Office for National Statistics,23-Jan-20,Exp - Short-Term Contract & Agency Staff - Full Cost,International Trade And Transactions,Concept Information Technology Ltd T/A Concept Resourcing,171240,15859.71, Information Management Services,Large,Programme Expenditure
UK Statistics Authority,Office for National Statistics,23-Jan-20,Exp - Short-Term Contract & Agency Staff - Full Cost,International Trade And Transactions,Concept Information Technology Ltd T/A Concept Resourcing,171240,4232.88, Information Management Services,Large,Programme Expenditure
UK Statistics Authority,Office for National Statistics,23-Jan-20,Exp - Short-Term Contract & Agency Staff - Full Cost,International Trade And Transactions,Concept Information Technology Ltd T/A Concept Resourcing,171240,4103.41, Information Management Services,Large,Programme Expenditure
UK Statistics Authority,Office for National Statistics,23-Jan-20,Exp - Short-Term Contract & Agency Staff - Full Cost,Productivity Research And Professional Development,Concept Information Technology Ltd T/A Concept Resourcing,171240,2239.3, Information Management Services,Large,Programme Expenditure
UK Statistics Authority,Office for National Statistics,23-Jan-20,Exp - Short-Term Contract & Agency Staff - Full Cost,Finance,Concept Information Technology Ltd T/A Concept Resourcing,171240,2276.64, Information Management Services,Large,Programme Expenditure
UK Statistics Authority,Office for National Statistics,23-Jan-20,Exp - Purchase Of Goods/Services - Contractors,Tech Delivery Legacy SP,Concept Information Technology Ltd T/A Concept Resourcing,171240,7800, Information Management Services,Large,Programme Expenditure
UK Statistics Authority,Office for National Statistics,23-Jan-20,Exp - Purchase Of Goods/Services - IT Contractual Services,Tech Delivery Legacy SP,Concept Information Technology Ltd T/A Concept Resourcing,171240,2700, Information Management Services,Large,Programme Expenditure
UK Statistics Authority,Office for National Statistics,23-Jan-20,Exp - Short-Term Contract & Agency Staff - Full Cost,Interviewer Management TU,Concept Information Technology Ltd T/A Concept Resourcing,171240,869.88, Information Management Services,Large,Programme Expenditure
UK Statistics Authority,Office for National Statistics,23-Jan-20,Exp - Short-Term Contract & Agency Staff - Full Cost,Prices Division,Concept Information Technology Ltd T/A Concept Resourcing,171240,8746.59, Information Management Services,Large,Programme Expenditure
UK Statistics Authority,Office for National Statistics,23-Jan-20,Exp - Purchase Of Goods/Services - Contractors,Programme Delivery,Certes Computing Ltd,171243,8005.94, Information Management Services,SME,Programme Expenditure
UK Statistics Authority,Office for National Statistics,23-Jan-20,Exp - Purchase Of Goods/Services - Contractors,International Trade And Transactions,Certes Computing Ltd,171243,8742.86, Information Management Services,SME,Programme Expenditure
UK Statistics Authority,Office for National Statistics,23-Jan-20,Exp - Purchase Of Goods/Services - Contractors,Tech Delivery Data As A Platform,Certes Computing Ltd,171243,19215, Information Management Services,SME,Programme Expenditure
UK Statistics Authority,Office for National Statistics,23-Jan-20,Exp - Purchase Of Goods/Services - Contractors,International Trade And Transactions,LA International,171244,2306.77, Information Management Services,SME,Programme Expenditure
UK Statistics Authority,Office for National Statistics,23-Jan-20,Exp - Purchase Of Goods/Services - Contractors,Tech Delivery SRS,LA International,171244,2870.64, Information Management Services,SME,Programme Expenditure
UK Statistics Authority,Office for National Statistics,23-Jan-20,Exp - Purchase Of Goods/Services - Contractors,Tech Delivery Data As A Platform,LA International,171244,8611.92, Information Management Services,SME,Programme Expenditure
UK Statistics Authority,Office for National Statistics,23-Jan-20,Exp - Purchase Of Goods/Services - Contractors,Tech Delivery Data As A Platform,LA International,171244,6407.76, Information Management Services,SME,Programme Expenditure
UK Statistics Authority,Office for National Statistics,23-Jan-20,Exp - Purchase Of Goods/Services - Contractors,IT Applications,LA International,171244,3139.8, Information Management Services,SME,Programme Expenditure
UK Statistics Authority,Office for National Statistics,23-Jan-20,Exp - Purchase Of Goods/Services - Contractors,Digital Delivery,LA International,171244,3844.62, Information Management Services,SME,Programme Expenditure
UK Statistics Authority,Office for National Statistics,23-Jan-20,Exp - Purchase Of Goods/Services - Contractors,Digital Delivery,LA International,171244,4485.42, Information Management Services,SME,Programme Expenditure
UK Statistics Authority,Office for National Statistics,23-Jan-20,Hosting,Data Science Campus,Strategic Blue Services Limited,171255,33974.66, UN Global Paltform G-Cloud Services,SME,Programme Expenditure
UK Statistics Authority,Office for National Statistics,24-Jan-20,Exp - Purchase Of Goods/Services - IT Contractual Services,DST Reapportioning,E Synergy Solutions,171263,146337, Information Management Services,SME,Programme Expenditure
UK Statistics Authority,Office for National Statistics,24-Jan-20,Exp - Purchase Of Goods/Services - IT Contractual Services,Tech Delivery Next Gen IT And Infrastructure,E Synergy Solutions,171263,51750, Information Management Services,SME,Programme Expenditure
UK Statistics Authority,Office for National Statistics,24-Jan-20,Exp - Purchase Of Goods/Services - Contractor Travel,Tech Delivery Next Gen IT And Infrastructure,E Synergy Solutions,171263,101.64, Information Management Services,SME,Programme Expenditure
UK Statistics Authority,Office for National Statistics,24-Jan-20,Exp - Purchase Of Goods/Services - IT Contractual Services,IT Operations,E Synergy Solutions,171263,110535, Information Management Services,SME,Programme Expenditure
UK Statistics Authority,Office for National Statistics,24-Jan-20,Exp - Purchase Of Goods/Services - IT Contractual Services,Data Science Campus,E Synergy Solutions,171263,29070, Information Management Services,SME,Programme Expenditure
UK Statistics Authority,Office for National Statistics,24-Jan-20,Exp - Purchase Of Goods/Services - IT Contractual Services,Digital Publishing,Swirrl IT Ltd,171264,69768, Information Management Services ,SME,Programme Expenditure
UK Statistics Authority,Office for National Statistics,24-Jan-20,Surveys,Social Surveys Division,Natcen Social Research,171265,277472.27, Statistical Services,Large,Programme Expenditure
UK Statistics Authority,Office for National Statistics,24-Jan-20,Exp - Permanent Uk Staff - Prp Voucher Payments,ONS Corporate Funds,Park Retail Ltd,171266,6301.03, Performance Reward Vouchers,Large,Programme Expenditure
UK Statistics Authority,Office for National Statistics,24-Jan-20,Exp - Purchase Of Goods/Services - Incentive Payments,Survey Management,Park Retail Ltd,171266,3156.36, Survey Incentives,Large,Programme Expenditure
UK Statistics Authority,Office for National Statistics,24-Jan-20,Exp - Purchase Of Goods/Services - Incentive Payments,Survey Management,Park Retail Ltd,171266,15823.76, Survey Incentives,Large,Programme Expenditure
UK Statistics Authority,Office for National Statistics,24-Jan-20,Exp - Purchase Of Goods/Services - Incentive Payments,Survey Management,Park Retail Ltd,171266,1570.33, Survey Incentives,Large,Programme Expenditure
UK Statistics Authority,Office for National Statistics,24-Jan-20,Exp - Purchase Of Goods/Services - Incentive Payments,Survey Management,Park Retail Ltd,171266,2919.74, Survey Incentives,Large,Programme Expenditure
UK Statistics Authority,Office for National Statistics,24-Jan-20,Exp - Purchase Of Goods/Services - Incentive Payments,Survey Management,Park Retail Ltd,171266,5810.2, Survey Incentives,Large,Programme Expenditure
UK Statistics Authority,Office for National Statistics,24-Jan-20,Exp - Purchase Of Goods/Services - IT Contractual Services,DST Reapportioning,Empiric Solutions Limited,171267,27300, Information Management Services,Large,Programme Expenditure
UK Statistics Authority,Office for National Statistics,24-Jan-20,Exp - Purchase Of Goods/Services - Other ICT Costs Software,Finance,SCC,171270,154286.88, ERP Licenses,Large,Programme Expenditure
UK Statistics Authority,Office for National Statistics,24-Jan-20,IT Management And Change,IT Operations,SCC,171270,69945.76, ERP Licenses,Large,Programme Expenditure
UK Statistics Authority,Office for National Statistics,24-Jan-20,Telecoms,IT Operations,BT Global Services,171272,26018.76, Cloud Hosting Services,Large,Programme Expenditure
UK Statistics Authority,Office for National Statistics,24-Jan-20,IT (Owned) At Cost - Additions,IT Operations,Centerprise International Ltd,171275,497940, Provision of Laptops and Peripherals ,Large,Programme Expenditure
UK Statistics Authority,Office for National Statistics,24-Jan-20,Exp - Purchase Of Goods/Services - IT Contractual Services,DST Reapportioning,QA Ltd,171277,466758, Information Management Services,Large,Programme Expenditure
UK Statistics Authority,Office for National Statistics,24-Jan-20,Exp - Purchase Of Goods/Services - Contractors,Digital Delivery,QA Ltd,171277,2056.5, Information Management Services,Large,Programme Expenditure
UK Statistics Authority,Office for National Statistics,24-Jan-20,Capital Major Works >25K,Property Christchurch,Paramount Office Interiors Ltd,171278,93280.12, Major Work Undertaken at Christchurch,SME,Programme Expenditure
UK Statistics Authority,Office for National Statistics,24-Jan-20,"ICT Outsourcing, Maintenance And Support",Strategy And Architecture,Insight Direct,171280,139175.27, Information Management Services,Large,Programme Expenditure
UK Statistics Authority,Office for National Statistics,24-Jan-20,End User Software And Hardware,IT Operations,Computacenter (Uk) Limited,171281,38334.96, Software Licenses,Large,Programme Expenditure
UK Statistics Authority,Office for National Statistics,24-Jan-20,Exp - Purchase Of Goods/Services - Contractors,Data Capability,Parity Resources Limited,171282,140.39, Information Management Services,Large,Programme Expenditure
UK Statistics Authority,Office for National Statistics,24-Jan-20,Exp - Purchase Of Goods/Services - Contractors,Data Capability,Parity Resources Limited,171282,16724.88, Information Management Services,Large,Programme Expenditure
UK Statistics Authority,Office for National Statistics,24-Jan-20,Exp - Short-Term Contract & Agency Staff - Full Cost,Census White Paper,Parity Resources Limited,171282,801.1, Census Information Management Services,Large,Programme Expenditure
UK Statistics Authority,Office for National Statistics,24-Jan-20,Exp - Purchase Of Goods/Services - Contractors,Stakeholder Engagement And Comms,Parity Resources Limited,171282,2625.19, Information Management Services,Large,Programme Expenditure
UK Statistics Authority,Office for National Statistics,24-Jan-20,Exp - Purchase Of Goods/Services - Contractors,Business Architecture,Parity Resources Limited,171282,6728.4, Information Management Services,Large,Programme Expenditure
UK Statistics Authority,Office for National Statistics,24-Jan-20,Exp - Short-Term Contract & Agency Staff - Full Cost,Census CCS Data Collection,Parity Resources Limited,171282,2129.76, Census Information Management Services,Large,Programme Expenditure
UK Statistics Authority,Office for National Statistics,24-Jan-20,Exp - Short-Term Contract & Agency Staff - Full Cost,Census CCS Data Collection,Parity Resources Limited,171282,1076.5, Census Information Management Services,Large,Programme Expenditure
UK Statistics Authority,Office for National Statistics,24-Jan-20,Exp - Purchase Of Goods/Services - Contractors,Operations,Parity Resources Limited,171282,8078.4, Information Management Services,Large,Programme Expenditure
UK Statistics Authority,Office for National Statistics,24-Jan-20,Exp - Purchase Of Goods/Services - Contractors,Programme Other,Parity Resources Limited,171282,300.96, Information Management Services,Large,Programme Expenditure
UK Statistics Authority,Office for National Statistics,24-Jan-20,Exp - Purchase Of Goods/Services - Contractors,Programme Delivery,Parity Resources Limited,171282,27490.32, Information Management Services,Large,Programme Expenditure
UK Statistics Authority,Office for National Statistics,24-Jan-20,Exp - Purchase Of Goods/Services - Contractors,Programme Delivery,Parity Resources Limited,171282,13258.3, Information Management Services,Large,Programme Expenditure
UK Statistics Authority,Office for National Statistics,24-Jan-20,Exp - Short-Term Contract & Agency Staff - Full Cost,International Trade And Transactions,Parity Resources Limited,171282,6100.12, Census Information Management Services,Large,Programme Expenditure
UK Statistics Authority,Office for National Statistics,24-Jan-20,Exp - Purchase Of Goods/Services - Contractors,International Trade And Transactions,Parity Resources Limited,171282,7849.8, Information Management Services,Large,Programme Expenditure
UK Statistics Authority,Office for National Statistics,24-Jan-20,Exp - Short-Term Contract & Agency Staff - Full Cost,Productivity Research And Professional Development,Parity Resources Limited,171282,1540.6, Census Information Management Services,Large,Programme Expenditure
UK Statistics Authority,Office for National Statistics,24-Jan-20,Exp - Short-Term Contract & Agency Staff - Full Cost,Strategy And Engagement,Parity Resources Limited,171282,1807.44, Census Information Management Services,Large,Programme Expenditure
UK Statistics Authority,Office for National Statistics,24-Jan-20,Exp - Purchase Of Goods/Services - Contractors,Business Architecture Transformation And Statistical Strategy,Parity Resources Limited,171282,8721, Information Management Services,Large,Programme Expenditure
UK Statistics Authority,Office for National Statistics,24-Jan-20,Exp - Purchase Of Goods/Services - Contractors,HR Business Partners,Parity Resources Limited,171282,11593.32, Information Management Services,Large,Programme Expenditure
UK Statistics Authority,Office for National Statistics,24-Jan-20,Exp - Purchase Of Goods/Services - Contractors,Security Advisory,Parity Resources Limited,171282,16917.12, Information Management Services,Large,Programme Expenditure
UK Statistics Authority,Office for National Statistics,24-Jan-20,Exp - Purchase Of Goods/Services - Contractors,Tech Delivery Legacy SP,Parity Resources Limited,171282,9804.24, Information Management Services,Large,Programme Expenditure
UK Statistics Authority,Office for National Statistics,24-Jan-20,Exp - Purchase Of Goods/Services - Contractors,IT Applications,Parity Resources Limited,171282,37224.29, Information Management Services,Large,Programme Expenditure
UK Statistics Authority,Office for National Statistics,24-Jan-20,Exp - Short-Term Contract & Agency Staff - Full Cost,Digital Delivery,Parity Resources Limited,171282,626.04, Census Information Management Services,Large,Programme Expenditure
UK Statistics Authority,Office for National Statistics,24-Jan-20,Exp - Purchase Of Goods/Services - Contractors,Digital Delivery,Parity Resources Limited,171282,25119.36, Information Management Services,Large,Programme Expenditure
UK Statistics Authority,Office for National Statistics,24-Jan-20,Exp - Purchase Of Goods/Services - Contractors,Digital Delivery,Parity Resources Limited,171282,12200.83, Information Management Services,Large,Programme Expenditure
UK Statistics Authority,Office for National Statistics,24-Jan-20,Exp - Purchase Of Goods/Services - Contractors,Digital Delivery,Parity Resources Limited,171282,10047.74, Information Management Services,Large,Programme Expenditure
UK Statistics Authority,Office for National Statistics,24-Jan-20,Exp - Purchase Of Goods/Services - Contractors,Digital Delivery,Parity Resources Limited,171282,8578.72, Information Management Services,Large,Programme Expenditure
UK Statistics Authority,Office for National Statistics,24-Jan-20,Exp - Purchase Of Goods/Services - IT Contractual Services,Digital Delivery,Parity Resources Limited,171282,9227.52, Census Information Management Services,Large,Programme Expenditure
UK Statistics Authority,Office for National Statistics,24-Jan-20,Exp - Purchase Of Goods/Services - Contractors,Data As A Service,Parity Resources Limited,171282,7176.96, Information Management Services,Large,Programme Expenditure
UK Statistics Authority,Office for National Statistics,24-Jan-20,Exp - Short-Term Contract & Agency Staff - Full Cost,Interviewer Management TU,Parity Resources Limited,171282,708.76, Census Information Management Services,Large,Programme Expenditure
UK Statistics Authority,Office for National Statistics,24-Jan-20,Exp - Short-Term Contract & Agency Staff - Full Cost,Social Survey Transformation Titchfield,Parity Resources Limited,171282,6294.14, Census Information Management Services,Large,Programme Expenditure
UK Statistics Authority,Office for National Statistics,24-Jan-20,Exp - Short-Term Contract & Agency Staff - Full Cost,Labour Market,Parity Resources Limited,171282,943.42, Census Information Management Services,Large,Programme Expenditure
UK Statistics Authority,Office for National Statistics,24-Jan-20,Exp - Short-Term Contract & Agency Staff - Full Cost,Labour Market,Parity Resources Limited,171282,719.72, Census Information Management Services,Large,Programme Expenditure
UK Statistics Authority,Office for National Statistics,24-Jan-20,IT Management And Change,Digital Publishing,CCS Media Ltd,171284,38043.02, Training Services,Large,Programme Expenditure
UK Statistics Authority,Office for National Statistics,24-Jan-20,"ICT Outsourcing, Maintenance And Support",People Solutions,Cabinet Office,171285,203870.52,Information Management Services,Large,Programme Expenditure
UK Statistics Authority,Office for National Statistics,24-Jan-20,Other Professional Services,Data Collection Service,Serco Ltd,171287,108541.07, Information Management Services ,Large,Programme Expenditure
UK Statistics Authority,Office for National Statistics,24-Jan-20,IT Management And Change,Digital Delivery,CTS (Cloud Technology Solutions Ltd),171288,42000, Census Google Cloud Services,Large,Programme Expenditure
UK Statistics Authority,Office for National Statistics,24-Jan-20,Exp - Purchase Of Goods/Services - Contractors,Testing,Methods Business & Digital Technology Ltd,171291,10500, Information Management Services,Large,Programme Expenditure
UK Statistics Authority,Office for National Statistics,24-Jan-20,Exp - Purchase Of Goods/Services - IT Contractual Services,DST Reapportioning,Methods Business & Digital Technology Ltd,171291,103655.26, Information Management Services,Large,Programme Expenditure
UK Statistics Authority,Office for National Statistics,24-Jan-20,Exp - Purchase Of Goods/Services - Contractors,Business Architecture,Certes Computing Ltd,171293,13066.2, Information Management Services,SME,Programme Expenditure
UK Statistics Authority,Office for National Statistics,24-Jan-20,Exp - Purchase Of Goods/Services - Contractors,Testing,Certes Computing Ltd,171293,23262.96, Information Management Services,SME,Programme Expenditure
UK Statistics Authority,Office for National Statistics,24-Jan-20,Exp - Purchase Of Goods/Services - Contractors,Programme Delivery,Certes Computing Ltd,171293,9607.5, Information Management Services,SME,Programme Expenditure
UK Statistics Authority,Office for National Statistics,24-Jan-20,Exp - Purchase Of Goods/Services - Contractors,International Trade And Transactions,Certes Computing Ltd,171293,10234.68, Information Management Services,SME,Programme Expenditure
UK Statistics Authority,Office for National Statistics,24-Jan-20,Exp - Purchase Of Goods/Services - Contractors,Data Architecture,Certes Computing Ltd,171293,12489.84, Information Management Services,SME,Programme Expenditure
UK Statistics Authority,Office for National Statistics,24-Jan-20,Exp - Purchase Of Goods/Services - Contractors,Strategy And Architecture,Certes Computing Ltd,171293,10824.06, Information Management Services,SME,Programme Expenditure
UK Statistics Authority,Office for National Statistics,24-Jan-20,Exp - Purchase Of Goods/Services - Contractors,Tech Delivery Legacy SP,Certes Computing Ltd,171293,33214.22, Information Management Services,SME,Programme Expenditure
UK Statistics Authority,Office for National Statistics,24-Jan-20,Exp - Purchase Of Goods/Services - Contractors,Tech Delivery Data As A Platform,Certes Computing Ltd,171293,768.6, Information Management Services,SME,Programme Expenditure
UK Statistics Authority,Office for National Statistics,24-Jan-20,Exp - Purchase Of Goods/Services - Contractors,IT Applications,Certes Computing Ltd,171293,12682.01, Information Management Services,SME,Programme Expenditure
UK Statistics Authority,Office for National Statistics,24-Jan-20,Exp - Purchase Of Goods/Services - Contractors,Office Of Chief Data And Information,Certes Computing Ltd,171293,-9.83, Information Management Services,SME,Programme Expenditure
UK Statistics Authority,Office for National Statistics,24-Jan-20,Exp - Purchase Of Goods/Services - Contractors,Digital Delivery,Certes Computing Ltd,171293,11529, Information Management Services,SME,Programme Expenditure
UK Statistics Authority,Office for National Statistics,24-Jan-20,Exp - Purchase Of Goods/Services - Contractors,Digital Delivery,Certes Computing Ltd,171293,11336.4, Information Management Services,SME,Programme Expenditure
UK Statistics Authority,Office for National Statistics,24-Jan-20,Exp - Purchase Of Goods/Services - Contractors,Digital Delivery,Certes Computing Ltd,171293,14091.12, Information Management Services,SME,Programme Expenditure
UK Statistics Authority,Office for National Statistics,24-Jan-20,Exp - Purchase Of Goods/Services - Contractors,Digital Delivery,Certes Computing Ltd,171293,3522.66, Information Management Services,SME,Programme Expenditure
UK Statistics Authority,Office for National Statistics,24-Jan-20,Exp - Purchase Of Goods/Services - Contractors,Digital Delivery,Certes Computing Ltd,171293,12682.01, Information Management Services,SME,Programme Expenditure
UK Statistics Authority,Office for National Statistics,24-Jan-20,Exp - Short-Term Contract & Agency Staff - Full Cost,Stakeholder Engagement And Comms,LA International,171294,3645.42, Information Management Services,SME,Programme Expenditure
UK Statistics Authority,Office for National Statistics,24-Jan-20,Exp - Purchase Of Goods/Services - Contractors,Testing,LA International,171294,13953.96, Information Management Services,SME,Programme Expenditure
UK Statistics Authority,Office for National Statistics,24-Jan-20,Exp - Purchase Of Goods/Services - Contractors,Programme Delivery,LA International,171294,12829.13, Information Management Services,SME,Programme Expenditure
UK Statistics Authority,Office for National Statistics,24-Jan-20,Exp - Purchase Of Goods/Services - Contractors,Sustainability And Inequalities,LA International,171294,3156.9, Information Management Services,SME,Programme Expenditure
UK Statistics Authority,Office for National Statistics,24-Jan-20,Exp - Purchase Of Goods/Services - Contractors,Security Advisory,LA International,171294,25374.49, Information Management Services,SME,Programme Expenditure
UK Statistics Authority,Office for National Statistics,24-Jan-20,Exp - Purchase Of Goods/Services - Contractors,Data Architecture,LA International,171294,5023.62, Information Management Services,SME,Programme Expenditure
UK Statistics Authority,Office for National Statistics,24-Jan-20,Exp - Purchase Of Goods/Services - Contractors,Data Architecture,LA International,171294,19671.59, Information Management Services,SME,Programme Expenditure
UK Statistics Authority,Office for National Statistics,24-Jan-20,Exp - Purchase Of Goods/Services - Contractors,Tech Delivery SRS,LA International,171294,5023.62, Information Management Services,SME,Programme Expenditure
UK Statistics Authority,Office for National Statistics,24-Jan-20,Exp - Purchase Of Goods/Services - Contractors,Tech Delivery Data As A Platform,LA International,171294,3203.88, Information Management Services,SME,Programme Expenditure
UK Statistics Authority,Office for National Statistics,24-Jan-20,Exp - Short-Term Contract & Agency Staff - Full Cost,Tech Delivery Next Gen IT And Infrastructure,LA International,171294,743.57, Information Management Services,SME,Programme Expenditure
UK Statistics Authority,Office for National Statistics,24-Jan-20,Exp - Purchase Of Goods/Services - Contractors,IT Applications,LA International,171294,34043.77, Information Management Services,SME,Programme Expenditure
UK Statistics Authority,Office for National Statistics,24-Jan-20,Exp - Purchase Of Goods/Services - Contractors,Digital Delivery,LA International,171294,5382.47, Information Management Services,SME,Programme Expenditure
UK Statistics Authority,Office for National Statistics,24-Jan-20,Exp - Purchase Of Goods/Services - Contractors,Digital Delivery,LA International,171294,268.09, Information Management Services,SME,Programme Expenditure
UK Statistics Authority,Office for National Statistics,24-Jan-20,Exp - Purchase Of Goods/Services - Contractors,Digital Delivery,LA International,171294,12687.36, Information Management Services,SME,Programme Expenditure
UK Statistics Authority,Office for National Statistics,24-Jan-20,Exp - Purchase Of Goods/Services - Contractors,Digital Delivery,LA International,171294,10047.24, Information Management Services,SME,Programme Expenditure
UK Statistics Authority,Office for National Statistics,24-Jan-20,Exp - Purchase Of Goods/Services - Contractors,Digital Delivery,LA International,171294,313.74, Information Management Services,SME,Programme Expenditure
UK Statistics Authority,Office for National Statistics,24-Jan-20,Exp - Purchase Of Goods/Services - Contractors,Digital Delivery,LA International,171294,14353.2, Information Management Services,SME,Programme Expenditure
UK Statistics Authority,Office for National Statistics,28-Jan-20,Exp - Permanent Uk Staff - Prp Voucher Payments,ONS Corporate Funds,Park Retail Ltd,171565,4162.5, Performance Reward Vouchers,Large,Programme Expenditure
UK Statistics Authority,Office for National Statistics,28-Jan-20,Exp - Purchase Of Goods/Services - Incentive Payments,Survey Management,Park Retail Ltd,171565,19792.81, Survey Incentives,Large,Programme Expenditure
UK Statistics Authority,Office for National Statistics,28-Jan-20,Exp - Purchase Of Goods/Services - Incentive Payments,Survey Management,Park Retail Ltd,171565,6523.27, Survey Incentives,Large,Programme Expenditure
UK Statistics Authority,Office for National Statistics,28-Jan-20,Exp - Purchase Of Goods/Services - Incentive Payments,Survey Management,Park Retail Ltd,171565,99.41, Survey Incentives,Large,Programme Expenditure
UK Statistics Authority,Office for National Statistics,28-Jan-20,Exp - Purchase Of Goods/Services - Incentive Payments,Survey Management,Park Retail Ltd,171565,2319.66, Survey Incentives,Large,Programme Expenditure
UK Statistics Authority,Office for National Statistics,28-Jan-20,Exp - Purchase Of Goods/Services - Incentive Payments,Survey Management,Park Retail Ltd,171565,2220.25, Survey Incentives,Large,Programme Expenditure
UK Statistics Authority,Office for National Statistics,28-Jan-20,Travel And Subsistence,CWT Trainline,Corporate Travel Management ,171569,82109.11, Corporate Travel Management ,SME,Programme Expenditure
UK Statistics Authority,Office for National Statistics,28-Jan-20,Surveys,Social Survey Transformation Newport,Ipsos Mori,171573,60000, Statistical Services,Large,Programme Expenditure
UK Statistics Authority,Office for National Statistics,28-Jan-20,Exp - Purchase Of Goods/Services - Contractors,Testing,LA International,171574,2563.08, Information Management Services,SME,Programme Expenditure
UK Statistics Authority,Office for National Statistics,28-Jan-20,Exp - Purchase Of Goods/Services - Contractors,Programme Delivery,LA International,171574,10834.01, Information Management Services,SME,Programme Expenditure
UK Statistics Authority,Office for National Statistics,28-Jan-20,Exp - Purchase Of Goods/Services - Contractors,Tech Delivery SRS,LA International,171574,3588.3, Information Management Services,SME,Programme Expenditure
UK Statistics Authority,Office for National Statistics,28-Jan-20,Exp - Purchase Of Goods/Services - Contractors,IT Applications,LA International,171574,9227.16, Information Management Services,SME,Programme Expenditure
UK Statistics Authority,Office for National Statistics,28-Jan-20,Exp - Purchase Of Goods/Services - Contractors,Digital Delivery,LA International,171574,3844.62, Information Management Services,SME,Programme Expenditure
UK Statistics Authority,Office for National Statistics,28-Jan-20,Other Professional Services,Data Collection Service,Good Things Foundation,171581,338068.84, Information Management Services,SME,Programme Expenditure
UK Statistics Authority,Office for National Statistics,28-Jan-20,Major Works Over ?25K,Property Christchurch,Pickfords Move Managment Ltd,171583,30062.74, Facilities Mangement Services,Large,Programme Expenditure
UK Statistics Authority,Office for National Statistics,29-Jan-20,IT (Owned) At Cost - Additions,IT Operations,Centerprise International Ltd,171806,962388, Provision of Laptops and Peripherals ,Large,Programme Expenditure
UK Statistics Authority,Office for National Statistics,29-Jan-20,Exp - Purchase Of Goods And Services Consultants,IT Operations,CSC Computer Sciences,171812,36000, Information Management Services,Large,Programme Expenditure
UK Statistics Authority,Office for National Statistics,29-Jan-20,Exp - Purchase Of Goods And Services Consultants,Consultancy Management,Bloom Procurement Services Ltd,171815,405905.33, Information Management Services,Large,Programme Expenditure
UK Statistics Authority,Office for National Statistics,29-Jan-20,Surveys,Crime Statistics,Kantar Uk Ltd,171819,449467.86, Statistical Services,Large,Programme Expenditure
UK Statistics Authority,Office for National Statistics,29-Jan-20,Exp - Purchase Of Goods/Services - Contractors,Internal Audit,RSM Risk Assurance Services Llp,171820,38412, Internal Audit Services ,SME,Programme Expenditure,,,,,,,=
UK Statistics Authority,Office for National Statistics,10-Jan-20,End User Software And Hardware,IT Operations,Slack Technologies Limited,30001748,29235.56, Software Licenses,Large,Programme Expenditure
UK Statistics Authority,Office for National Statistics,14-Jan-20,"ICT Outsourcing, Maintenance And Support",Learning And Capability,Getabstract Ag,30001758,33800, Training Services,SME,Programme Expenditure
UK Statistics Authority,Office for National Statistics,21-Jan-20,Electricity,Property Titchfield,EDF Energy,30001772,27505.04, Electricity Charges Titchfield,Large,Programme Expenditure
UK Statistics Authority,Office for National Statistics,21-Jan-20,Electricity,Property Newport,EDF Energy,30001773,32526.44, Electricity Charges Newport,Large,Programme Expenditure
